bitfinex/quotes_ETHUSD_20250822
["timestamp","ask_amount","ask_price","bid_price","bid_amount"]
[1755824598602,0.002,4257.9,4257.8,5.34863074]
[1755824598803,3.948,4257.9,4257.8,6.74863074]
[1755824600670,0.002,4257.9,4257.8,6.74863074]
[1755824603395,0.002,4257.9,4257.8,1.4]
[1755824603598,0.002,4257.9,4257.8,3.77211704]
[1755824603801,0.002,4257.9,4257.8,7.79977554]
[1755824604001,0.002,4257.9,4257.8,7.77628924]
[1755824605427,0.002,4257.9,4257.8,3.0]
[1755824605577,0.6785,4257.9,4257.8,3.0]
[1755824605975,0.2316,4257.9,4257.8,3.0]
[1755824606795,0.002,4257.9,4257.8,3.2955]
[1755824607018,0.002,4257.9,4257.8,3.0]
[1755824607516,0.2903,4257.9,4257.8,3.0]
[1755824608094,0.002,4257.9,4257.8,3.0]
[1755824608294,0.002,4257.9,4257.8,3.2955]
[1755824609200,0.002,4257.9,4257.8,3.0]
[1755824609383,0.2316,4257.9,4257.8,3.0]
[1755824610316,0.6785,4257.9,4257.8,3.0]
[1755824610488,0.2316,4257.9,4257.8,3.0]
[1755824612215,0.69395,4257.9,4257.8,3.0]
[1755824612417,1.14085,4257.9,4257.7,0.706213]
[1755824612614,4.3899,4257.8,4257.7,0.706213]
[1755824612794,4.6217,4257.8,4257.7,0.706213]
[1755824615121,4.1748,4257.8,4257.7,0.706213]
[1755824615327,3.943,4257.8,4257.7,0.706213]
[1755824616133,5.75,4257.8,4257.7,0.706213]
[1755824616332,6.375935,4257.8,4257.7,0.706213]
[1755824616830,6.370435,4257.8,4257.7,1.001713]
[1755824617842,6.370435,4257.8,4257.7,0.706213]
[1755824619256,6.374835,4257.8,4257.7,0.706213]
[1755824619413,6.812235,4257.8,4257.7,0.706213]
[1755824622350,6.814235,4257.8,4257.7,0.706213]
[1755824623642,6.814235,4257.8,4257.6,0.001]
[1755824623833,1.79622161,4257.7,4257.6,0.001]
[1755824624147,2.03452161,4257.7,4257.6,0.001]
[1755824624957,2.76172433,4257.7,4257.6,0.001]
[1755824625310,8.40972433,4257.7,4257.6,0.001]
[1755824626737,38.40972433,4257.7,4257.6,0.001]
[1755824627733,39.06972433,4257.7,4257.6,0.001]
[1755824627948,0.66,4257.6,4256.8,0.021]
[1755824628107,7.74618108,4257.2,4256.8,0.021]
[1755824628310,15.4213838,4257.2,4256.8,0.021]
[1755824628549,15.7844838,4257.2,4256.8,0.021]
[1755824632858,45.7844838,4257.2,4256.8,0.021]
[1755824633066,3.66,4257.1,4255.9,0.001]
[1755824633235,7.08618108,4256.0,4255.9,0.001]
[1755824633435,12.84118108,4256.0,4255.9,0.001]
[1755824633742,13.20598108,4256.0,4255.9,0.001]
[1755824634367,13.32557549,4256.0,4255.9,0.001]
[1755824634565,14.29533304,4256.0,4255.9,0.001]
[1755824636777,14.66013304,4256.0,4255.9,0.001]
[1755824637156,17.66013304,4256.0,4255.9,0.001]
[1755824638082,33.66,4255.9,4255.2,0.001]
[1755824638371,7.08618108,4255.3,4255.2,0.001]
[1755824638674,44.04218108,4255.3,4255.2,0.001]
[1755824638835,44.40698108,4255.3,4255.2,0.001]
[1755824640771,13.72698108,4255.3,4255.2,0.001]
[1755824642100,13.72898108,4255.3,4255.2,0.001]
[1755824642306,14.35041608,4255.3,4255.2,0.001]
[1755824642667,44.35041608,4255.3,4255.2,0.001]
[1755824643000,44.78341608,4255.3,4255.2,0.001]
[1755824644008,10.39541608,4255.3,4255.2,0.001]
[1755824644306,14.34741608,4255.3,4255.2,0.001]
[1755824644506,14.35371608,4255.3,4255.2,0.001]
[1755824646716,0.621435,4255.3,4255.2,0.7616]
[1755824646913,3.953,4255.3,4255.2,0.7616]
[1755824649426,10.72498108,4255.3,4255.2,0.7616]
[1755824649723,10.96298108,4255.3,4255.2,0.001]
[1755824649879,12.10290919,4255.3,4255.2,0.001]
[1755824650388,15.53920919,4255.3,4255.2,0.001]
[1755824651324,16.04416355,4255.3,4255.2,0.001]
[1755824651522,15.60786355,4255.3,4255.2,0.001]
[1755824652917,16.70616355,4255.3,4255.2,0.001]
[1755824654316,16.26786355,4255.3,4255.2,0.001]
[1755824655434,16.48753074,4255.3,4255.2,0.001]
[1755824657214,17.11846533,4255.3,4255.2,0.001]
[1755824657752,47.05776774,4255.3,4255.2,0.001]
[1755824658048,47.05776774,4255.3,4255.1,0.001]
[1755824658049,33.66,4255.2,4255.1,0.001]
[1755824658203,38.22615658,4255.2,4255.1,0.001]
[1755824658412,38.66245658,4255.2,4255.1,0.001]
[1755824658926,37.81812299,4255.2,4254.8,0.021]
[1755824659134,7.43198108,4254.9,4254.8,0.021]
[1755824659441,12.35080263,4254.9,4254.8,0.021]
[1755824659731,14.41068144,4254.9,4254.8,0.021]
[1755824660548,14.10867713,4254.9,4254.8,0.021]
[1755824661401,9.91447713,4254.9,4254.8,0.021]
[1755824661703,13.20347713,4254.9,4254.8,0.7983]
[1755824663244,13.44377713,4254.9,4254.8,0.021]
[1755824663545,13.44394597,4254.9,4254.8,0.021]
[1755824664235,14.28856704,4254.9,4254.8,0.021]
[1755824666046,14.10394597,4254.9,4254.8,0.021]
[1755824666246,14.10634597,4254.9,4254.8,0.021]
[1755824666558,3.66,4254.8,4254.7,0.001]
[1755824666715,5.37404878,4254.8,4254.7,0.001]
[1755824667020,5.37164878,4254.8,4254.7,0.001]
[1755824667234,5.37404878,4254.8,4254.7,0.001]
[1755824667621,5.37164878,4254.8,4254.7,0.001]
[1755824668656,5.13134878,4254.8,4254.7,0.001]
[1755824668842,5.31758341,4254.8,4254.7,0.3118]
[1755824669158,9.26558341,4254.8,4254.7,0.7783]
[1755824669524,8.2873252,4254.8,4254.7,0.7783]
[1755824669842,8.41967866,4254.8,4254.7,0.7783]
[1755824670354,8.42067866,4254.8,4254.7,0.7783]
[1755824671042,8.42067866,4254.8,4254.7,0.3118]
[1755824671422,8.42507866,4254.8,4254.7,0.001]
[1755824672242,8.41867866,4254.8,4254.7,0.7783]
[1755824672865,14.07267866,4254.8,4254.7,0.7783]
[1755824673078,11.07267866,4254.8,4254.7,0.7783]
[1755824673247,11.70723783,4254.8,4254.7,0.7783]
[1755824675243,11.70723783,4254.8,4254.7,0.001]
[1755824675444,11.70963783,4254.8,4254.7,0.001]
[1755824675845,11.7072142,4254.8,4254.7,0.001]
[1755824676579,11.7072142,4254.8,4254.7,0.3118]
[1755824677285,11.70737797,4254.8,4254.7,0.001]
[1755824678188,11.70737797,4254.8,4254.7,0.7472]
[1755824678189,11.07265503,4254.8,4254.7,0.7472]
[1755824678491,11.70756626,4254.8,4254.7,0.7472]
[1755824678890,11.57536452,4254.8,4254.7,0.7472]
[1755824679068,11.9165589,4254.8,4254.7,0.001]
[1755824679267,11.91680212,4254.8,4254.7,0.001]
[1755824679495,11.91693721,4254.8,4254.7,0.001]
[1755824679704,11.28178276,4254.8,4254.7,0.001]
[1755824681895,11.07298276,4254.8,4254.7,0.001]
[1755824682196,11.07305188,4254.8,4254.7,0.7472]
[1755824682499,13.51746108,4254.8,4254.7,0.7472]
[1755824683597,13.51746108,4254.8,4254.7,0.3089]
[1755824683800,13.51746108,4254.8,4254.7,0.7472]
[1755824684186,12.88205188,4254.8,4254.7,0.7472]
[1755824684685,12.88205188,4254.8,4254.7,0.3089]
[1755824684889,12.88205188,4254.8,4254.7,0.7472]
[1755824685196,12.88225743,4254.8,4254.7,0.7472]
[1755824685608,8.93525743,4254.8,4254.7,0.7472]
[1755824685769,12.12966709,4254.8,4254.7,0.7472]
[1755824686384,8.18866709,4254.8,4254.7,0.7472]
[1755824686700,12.12966709,4254.8,4254.7,0.7472]
[1755824687395,12.26212149,4254.8,4254.7,0.7472]
[1755824688107,12.12966709,4254.8,4254.7,0.7472]
[1755824688308,14.52738517,4254.8,4254.7,0.001]
[1755824688478,14.8805869,4254.8,4254.7,0.001]
[1755824688673,14.74813461,4254.8,4254.7,0.001]
[1755824688875,14.8806144,4254.8,4254.7,0.001]
[1755824689213,14.8806168,4254.8,4254.7,0.001]
[1755824689977,18.72685143,4254.8,4254.7,0.001]
[1755824690178,33.66,4254.7,4254.3,0.001]
[1755824690512,10.72688108,4254.4,4254.3,0.001]
[1755824690689,46.80728363,4254.4,4254.3,0.001]
[1755824690889,46.98538363,4254.4,4254.3,0.001]
[1755824691087,3.66,4254.3,4254.2,0.001]
[1755824691281,36.01235043,4254.3,4254.2,0.001]
[1755824691478,36.01219144,4254.3,4254.2,0.001]
[1755824692416,35.62699144,4254.3,4254.2,0.001]
[1755824693422,36.47376562,4254.3,4254.2,0.001]
[1755824693916,40.43176562,4254.3,4254.2,0.001]
[1755824696227,39.58499144,4254.3,4254.2,0.001]
[1755824697301,39.58467703,4254.3,4254.2,0.001]
[1755824697533,39.45227479,4254.3,4254.2,0.001]
[1755824697843,39.58448835,4254.3,4254.2,0.001]
[1755824700040,39.58448835,4254.3,4254.1,0.001]
[1755824700214,3.66,4253.8,4253.1,0.001]
[1755824700549,6.77198108,4253.2,4253.1,0.001]
[1755824700702,11.79225538,4253.2,4253.1,0.001]
[1755824700903,11.66007489,4253.2,4253.1,0.001]
[1755824701147,13.02172954,4253.2,4253.1,0.001]
[1755824701515,3.0,4253.1,4252.8,0.021]
[1755824701711,0.8714,4252.9,4252.8,0.021]
[1755824701907,3.40569381,4252.9,4252.8,0.021]
[1755824702107,33.40569381,4252.9,4252.8,0.021]
[1755824702315,34.87734507,4252.9,4252.8,0.021]
[1755824702554,34.41614507,4252.9,4252.8,0.021]
[1755824702863,3.66,4252.8,4251.6,0.4383]
[1755824703039,10.64588108,4252.4,4251.6,0.4383]
[1755824703218,46.87309947,4252.4,4251.6,0.4383]
[1755824705123,46.65276002,4252.4,4251.1,0.095339]
[1755824705330,3.66,4252.3,4251.3,0.4383]
[1755824705551,6.98828108,4252.0,4251.3,0.4383]
[1755824705842,45.75328108,4252.0,4251.3,0.4383]
[1755824706050,46.66726347,4252.0,4251.3,0.4383]
[1755824707213,46.16108731,4252.0,4251.3,0.4383]
[1755824707559,46.8861597,4252.0,4251.3,0.4383]
[1755824708149,46.66668795,4252.0,4251.3,0.4383]
[1755824708363,47.32668795,4252.0,4251.6,0.4529]
[1755824708528,12.49438795,4252.0,4251.9,0.7676]
[1755824708720,15.94678731,4252.0,4251.9,0.7676]
[1755824709530,12.53898108,4252.0,4251.9,0.7676]
[1755824711633,12.53898108,4252.0,4251.9,0.3147]
[1755824711863,43.48528108,4252.0,4251.9,0.001]
[1755824712629,43.64618108,4252.0,4251.9,0.001]
[1755824713331,43.48528108,4252.0,4251.9,0.001]
[1755824713527,45.1225393,4252.0,4251.9,0.001]
[1755824713929,48.1225393,4252.0,4251.9,0.001]
[1755824718675,47.8362393,4252.0,4251.9,0.3147]
[1755824718881,13.2182393,4252.0,4251.9,0.7676]
[1755824719079,17.1742393,4252.0,4251.9,0.7676]
[1755824719378,17.1752393,4252.0,4251.9,0.7676]
[1755824721013,17.1752393,4252.0,4251.9,0.3147]
[1755824721273,17.1752393,4252.0,4251.9,0.7676]
[1755824723480,17.68160915,4252.0,4251.9,0.7676]
[1755824725349,10.72460915,4252.0,4251.9,0.7676]
[1755824725549,12.53598108,4252.0,4251.9,0.7676]
[1755824728200,13.04358682,4252.0,4251.9,0.7676]
[1755824728549,13.04358682,4252.0,4251.9,0.3147]
[1755824729087,13.26392786,4252.0,4251.9,0.3147]
[1755824730260,13.26392786,4252.0,4251.9,0.7676]
[1755824730461,14.65396515,4252.0,4251.9,0.7676]
[1755824730690,14.43362411,4252.0,4251.9,0.7676]
[1755824730893,14.65420008,4252.0,4251.9,0.7676]
[1755824733167,14.65420008,4252.0,4251.9,0.3147]
[1755824733686,14.89240008,4252.0,4251.9,0.001]
[1755824733886,14.43362411,4252.0,4251.9,0.001]
[1755824734086,14.78684697,4252.0,4251.9,0.001]
[1755824734487,14.78684841,4252.0,4251.9,0.001]
[1755824734789,15.02704841,4252.0,4251.9,0.001]
[1755824734999,0.66,4251.9,4251.1,0.001]
[1755824735200,6.77198108,4251.2,4251.1,0.001]
[1755824735505,13.04058682,4251.2,4251.1,0.001]
[1755824735658,14.26784524,4251.2,4251.1,0.001]
[1755824735858,17.29206095,4251.2,4251.1,0.001]
[1755824736130,17.29206095,4251.2,4250.7,0.001]
[1755824736131,0.66,4250.9,4250.7,0.001]
[1755824736283,38.76017987,4250.9,4250.7,0.001]
[1755824736489,38.87989196,4250.9,4250.7,0.001]
[1755824737126,38.87949312,4250.9,4250.7,0.001]
[1755824737340,10.43198108,4250.4,4250.3,31.98477652]
[1755824737486,58.37056211,4250.4,4250.3,31.98477652]
[1755824737701,17.07846211,4250.4,4250.3,32.29847652]
[1755824738005,18.22337932,4250.4,4250.3,31.98477652]
[1755824738209,43.94847932,4250.4,4250.3,31.98477652]
[1755824738522,43.94847932,4250.4,4250.3,32.74737652]
[1755824738523,9.5141528,4250.4,4250.3,32.74737652]
[1755824738726,9.5141528,4250.4,4250.3,32.74837652]
[1755824739128,9.29360574,4250.4,4250.3,32.27987652]
[1755824739291,9.29360574,4250.4,4250.3,32.74837652]
[1755824740198,9.29360574,4250.4,4250.3,31.98577652]
[1755824740403,9.52630574,4250.4,4250.3,31.98577652]
[1755824740935,39.74622863,4250.4,4250.3,31.98577652]
[1755824742093,40.18630574,4250.4,4250.3,31.98577652]
[1755824742732,9.95360574,4250.4,4250.3,32.27987652]
[1755824743334,10.18840574,4250.4,4250.3,31.98577652]
[1755824743502,10.18694896,4250.4,4250.3,31.98577652]
[1755824743713,9.95214896,4250.4,4250.3,31.98577652]
[1755824744219,40.18904896,4250.4,4250.3,31.98577652]
[1755824746612,9.95214896,4250.4,4250.3,31.98577652]
[1755824747522,10.19104896,4250.4,4250.3,31.98577652]
[1755824747729,10.62874896,4250.4,4250.3,31.98577652]
[1755824747901,21.59590506,4250.4,4250.3,31.98577652]
[1755824748232,51.59590506,4250.4,4250.3,31.98577652]
[1755824748635,51.59590506,4250.4,4250.3,30.72799291]
[1755824748806,52.44192227,4250.4,4250.3,28.23943412]
[1755824749332,51.24474896,4250.4,4250.3,28.23943412]
[1755824749508,52.44162326,4250.4,4250.3,28.23943412]
[1755824751035,54.92462326,4250.4,4250.3,21.22251097]
[1755824751627,61.92462326,4250.4,4250.3,21.22251097]
[1755824751822,31.92462326,4250.4,4250.3,21.22251097]
[1755824752022,61.92462326,4250.4,4250.3,21.22251097]
[1755824752223,61.92462326,4250.4,4250.3,14.20558782]
[1755824752431,61.70533758,4250.4,4250.3,14.20558782]
[1755824752631,61.92434143,4250.4,4250.3,14.20558782]
[1755824752831,31.92434143,4250.4,4250.3,14.20558782]
[1755824753136,61.92434191,4250.4,4250.3,5.99274518]
[1755824753328,61.92429922,4250.4,4250.3,5.99274518]
[1755824753713,57.94829922,4250.4,4250.3,5.99274518]
[1755824754047,61.92129922,4250.4,4250.3,5.99274518]
[1755824755127,61.07528201,4250.4,4250.3,5.99274518]
[1755824755327,61.07528201,4250.4,4250.3,3.40474464]
[1755824755710,61.07516763,4250.4,4250.3,3.40474464]
[1755824757062,36.143,4250.3,4249.8,0.021]
[1755824757345,19.22196396,4249.9,4249.8,0.021]
[1755824757640,64.03676272,4249.9,4249.8,0.021]
[1755824758040,64.47256272,4249.9,4249.8,0.021]
[1755824758829,64.47256467,4249.9,4249.8,0.021]
[1755824759024,64.03676467,4249.9,4249.8,0.021]
[1755824760430,66.51988791,4249.9,4249.8,0.021]
[1755824761055,66.95568791,4249.9,4249.8,0.021]
[1755824761352,67.79692023,4249.9,4249.8,0.021]
[1755824761718,67.7969154,4249.9,4249.8,0.021]
[1755824762030,67.3611154,4249.9,4249.8,0.021]
[1755824762229,44.3511154,4249.9,4249.8,0.021]
[1755824762562,73.51009024,4249.9,4249.8,0.021]
[1755824762719,69.53909024,4249.9,4249.8,0.021]
[1755824762919,56.09289515,4249.9,4249.8,0.3151]
[1755824763120,46.10654517,4249.9,4249.8,0.7836]
[1755824763322,52.47489515,4249.9,4249.8,0.7836]
[1755824763721,45.47919379,4249.9,4249.8,0.7836]
[1755824763937,18.68336352,4249.9,4249.8,0.7836]
[1755824764155,17.84719283,4249.9,4249.8,0.7836]
[1755824764357,19.13949147,4249.9,4249.8,0.7836]
[1755824764656,22.44849147,4249.9,4249.8,0.7836]
[1755824764958,23.10849147,4249.9,4249.8,0.7836]
[1755824765327,22.47619283,4249.9,4249.8,0.7836]
[1755824766462,23.11003119,4249.9,4249.8,0.7836]
[1755824767260,13.28414896,4249.9,4249.8,0.7836]
[1755824767636,6.28414896,4249.9,4249.8,0.7836]
[1755824769727,2.31714896,4249.9,4249.8,0.7836]
[1755824769926,5.777,4249.9,4249.8,0.7836]
[1755824770157,6.28314896,4249.9,4249.8,0.7836]
[1755824770325,6.284309,4249.9,4249.8,0.7836]
[1755824773696,2.318309,4249.9,4249.8,0.7836]
[1755824773897,5.776,4249.9,4249.8,0.7836]
[1755824774069,6.283309,4249.9,4249.8,0.7836]
[1755824774269,5.776,4249.9,4249.8,0.7836]
[1755824775700,1.811,4249.9,4249.8,0.7836]
[1755824775896,5.774,4249.9,4249.8,0.7836]
[1755824776908,6.28092338,4249.9,4249.8,0.3151]
[1755824777087,6.28092338,4249.9,4249.8,0.021]
[1755824778101,43.94806438,4249.9,4249.8,0.021]
[1755824778287,44.30011373,4249.9,4249.8,0.021]
[1755824778890,37.50657273,4249.9,4249.8,0.021]
[1755824779275,6.94092338,4249.9,4249.8,0.335]
[1755824779494,6.94092338,4249.9,4249.8,0.8076]
[1755824779917,10.37465487,4249.9,4249.8,0.021]
[1755824780204,40.50672509,4249.9,4249.8,0.021]
[1755824780410,40.50664837,4249.9,4249.8,0.021]
[1755824780565,58.57644837,4249.9,4249.8,0.021]
[1755824780759,59.41861729,4249.9,4249.8,0.021]
[1755824780960,58.11364837,4249.9,4249.8,0.021]
[1755824783128,58.57894837,4249.9,4249.8,0.021]
[1755824783611,59.42111729,4249.9,4249.8,0.021]
[1755824783983,58.57894837,4249.9,4249.8,0.021]
[1755824784987,28.57894837,4249.9,4249.8,0.021]
[1755824785213,58.57894837,4249.9,4249.8,0.021]
[1755824786009,58.57915547,4249.9,4249.8,0.021]
[1755824787619,3.66,4249.8,4249.4,0.001]
[1755824787785,11.29890426,4249.5,4249.4,0.001]
[1755824787987,16.33175973,4249.5,4249.4,0.001]
[1755824788298,16.79455973,4249.5,4249.4,0.001]
[1755824788509,46.79455973,4249.5,4249.4,0.001]
[1755824788814,46.79441126,4249.5,4249.4,0.001]
[1755824789019,46.5742037,4249.5,4249.4,0.001]
[1755824789237,46.79432157,4249.5,4249.4,0.001]
[1755824789584,45.94907192,4249.5,4249.4,0.001]
[1755824791118,45.48627192,4249.5,4249.4,0.001]
[1755824791321,45.27267192,4249.5,4249.4,0.315]
[1755824791722,53.10666811,4249.5,4249.4,0.7876]
[1755824791886,49.14766811,4249.5,4249.4,0.7876]
[1755824792083,15.48766811,4249.5,4249.4,0.7876]
[1755824792303,11.80909949,4249.5,4249.4,0.7876]
[1755824792649,0.63370376,4249.7,4249.4,0.7876]
[1755824792938,3.96,4249.6,4249.5,0.4726]
[1755824793086,3.961,4249.6,4249.5,0.7866]
[1755824795609,4.621,4249.6,4249.5,0.314]
[1755824795793,33.66,4249.5,4249.4,0.001]
[1755824795995,41.61645292,4249.5,4249.4,0.001]
[1755824796286,34.82291192,4249.5,4249.4,0.001]
[1755824797118,4.82291192,4249.5,4249.4,0.001]
[1755824797292,5.45505482,4249.5,4249.4,0.001]
[1755824797493,35.8266648,4249.5,4249.4,0.001]
[1755824797720,3.0,4249.4,4249.3,0.001]
[1755824797896,45.48971192,4249.4,4249.3,0.001]
[1755824798227,45.48971192,4249.4,4248.9,0.001]
[1755824798228,3.0,4249.2,4248.9,0.001]
[1755824798435,15.00337626,4249.0,4248.9,0.001]
[1755824798620,56.48125652,4249.0,4248.9,0.001]
[1755824798828,56.63149957,4249.0,4248.9,0.001]
[1755824799001,56.85152091,4249.0,4248.9,0.001]
[1755824799429,57.51152091,4249.0,4248.8,0.02]
[1755824799735,39.6995427,4248.9,4247.7,0.4624]
[1755824800026,0.66,4248.2,4247.7,0.4624]
[1755824800228,5.776,4248.1,4247.7,0.4624]
[1755824800400,5.776,4248.1,4247.8,0.4824]
[1755824800725,5.776,4248.1,4247.8,0.02]
[1755824800926,6.436,4248.1,4248.0,0.301]
[1755824801226,0.66,4248.0,4247.8,0.02]
[1755824801433,34.625,4247.9,4247.8,0.02]
[1755824801730,4.625,4247.9,4247.8,0.321]
[1755824802023,5.13170931,4247.9,4247.8,0.321]
[1755824802535,5.13170931,4247.9,4247.8,0.02]
[1755824802536,7.6312,4247.9,4247.8,0.02]
[1755824802731,8.13778277,4247.9,4247.8,0.02]
[1755824802901,8.13158277,4247.9,4247.8,0.02]
[1755824803406,8.14208277,4247.9,4247.8,0.02]
[1755824803608,38.57428277,4247.9,4247.8,0.02]
[1755824803809,38.92600913,4247.9,4247.8,0.02]
[1755824804013,49.54800913,4247.9,4247.8,0.02]
[1755824804213,3.66,4247.8,4246.8,0.02]
[1755824804423,0.66,4247.1,4246.8,0.02]
[1755824804736,5.776,4247.0,4246.8,0.02]
[1755824804922,5.776,4247.0,4246.9,0.301]
[1755824805236,5.776,4247.0,4246.9,0.7634]
[1755824807819,5.776,4247.0,4246.9,0.301]
[1755824808214,6.436,4247.0,4246.9,0.301]
[1755824808431,0.66,4246.9,4246.8,0.02]
[1755824809537,0.66,4246.9,4246.8,0.321]
[1755824809707,0.66,4246.9,4246.8,0.7834]
[1755824810135,0.77858317,4246.9,4246.8,0.7834]
[1755824810442,0.77858317,4246.9,4246.8,0.321]
[1755824810740,0.77858317,4246.9,4246.8,0.7834]
[1755824811437,4.74058317,4246.9,4246.8,0.7834]
[1755824811628,4.74058317,4246.9,4246.8,0.321]
[1755824811830,4.74058317,4246.9,4246.8,0.02]
[1755824812037,4.74058317,4246.9,4246.8,0.321]
[1755824812333,3.962,4246.9,4246.8,0.7834]
[1755824814832,3.962,4246.9,4246.8,0.02]
[1755824815213,3.962,4246.9,4246.8,0.321]
[1755824816519,3.962,4246.9,4246.8,0.7834]
[1755824818717,3.962,4246.9,4246.8,0.321]
[1755824819117,4.1998,4246.9,4246.8,0.02]
[1755824820320,3.962,4246.9,4246.8,0.321]
[1755824820817,3.962,4246.9,4246.8,0.7834]
[1755824821549,4.1998,4246.9,4246.8,0.02]
[1755824821932,4.8598,4246.9,4246.8,0.02]
[1755824822472,4.622,4246.9,4246.8,0.02]
[1755824824055,1.811,4247.0,4246.8,0.321]
[1755824824234,3.962,4246.9,4246.8,0.7834]
[1755824824552,1.811,4247.0,4246.9,0.4624]
[1755824824739,5.772,4247.0,4246.9,0.7634]
[1755824825252,5.772,4247.0,4246.8,0.02]
[1755824826444,6.80629584,4246.9,4246.8,0.02]
[1755824826644,6.80629584,4246.9,4246.8,0.321]
[1755824827645,7.55121278,4246.9,4246.8,0.02]
[1755824827837,7.31341278,4246.9,4246.8,0.02]
[1755824828033,7.31341278,4246.9,4246.8,0.3127]
[1755824828360,3.961,4246.9,4246.8,0.7511]
[1755824828562,1.811,4247.0,4246.8,0.7511]
[1755824828724,3.961,4246.9,4246.8,0.3127]
[1755824829339,1.811,4247.0,4246.8,0.7511]
[1755824829547,1.811,4247.0,4246.9,0.4384]
[1755824829859,5.772,4247.0,4246.9,0.7311]
[1755824831158,6.0723,4247.0,4246.8,0.02]
[1755824831455,6.80629584,4246.9,4246.8,0.02]
[1755824831662,7.10659584,4246.9,4246.8,0.02]
[1755824832357,0.3003,4246.9,4246.8,0.02]
[1755824832858,0.80821492,4246.9,4246.8,0.02]
[1755824833034,0.80821308,4246.9,4246.8,0.02]
[1755824833226,0.3003,4246.9,4246.8,0.02]
[1755824833428,1.02855268,4246.9,4246.8,0.02]
[1755824833627,2.06545268,4246.9,4246.8,0.02]
[1755824834063,1.68855268,4246.9,4246.8,0.02]
[1755824834631,1.46814177,4246.9,4246.8,0.02]
[1755824834833,1.68857493,4246.9,4246.8,0.02]
[1755824835267,1.68856571,4246.9,4246.8,0.02]
[1755824837064,4.82079942,4246.9,4246.8,0.02]
[1755824837363,35.45569307,4246.9,4246.8,0.02]
[1755824837568,0.66,4246.6,4246.0,0.001]
[1755824837740,0.9603,4246.1,4246.0,0.001]
[1755824837948,7.46656571,4246.1,4246.0,0.001]
[1755824838262,7.24614177,4246.1,4246.0,0.001]
[1755824841666,6.28584177,4246.1,4246.0,0.7321]
[1755824841868,1.812,4246.1,4246.0,0.2937]
[1755824842073,6.0188,4246.1,4246.0,0.001]
[1755824842371,6.52630618,4246.1,4246.0,0.001]
[1755824843270,7.18630618,4246.1,4246.0,0.001]
[1755824843845,44.17630618,4246.1,4246.0,0.001]
[1755824844249,44.39648637,4246.1,4246.0,0.001]
[1755824845176,44.39648637,4246.1,4245.8,0.02]
[1755824845177,3.66,4246.0,4245.8,0.02]
[1755824845347,8.06944571,4245.9,4245.8,0.02]
[1755824845667,0.66,4245.8,4244.8,0.02]
[1755824845833,0.2465,4244.9,4244.8,0.02]
[1755824846035,11.443,4244.9,4244.8,0.02]
[1755824846450,12.1068,4244.9,4244.8,0.02]
[1755824847542,15.1068,4244.9,4244.8,0.02]
[1755824847749,46.03899785,4244.9,4244.8,0.02]
[1755824848175,0.66,4244.8,4243.8,0.02]
[1755824848378,14.71367937,4244.1,4243.8,0.02]
[1755824848550,5.779,4244.0,4243.8,0.02]
[1755824848768,33.6643,4243.9,4243.8,0.02]
[1755824849167,45.22829992,4243.9,4242.8,0.02]
[1755824849376,0.66,4243.0,4242.8,0.02]
[1755824849585,6.442,4242.9,4242.8,0.02]
[1755824849758,6.442,4242.9,4242.8,0.3127]
[1755824849960,36.56641322,4242.9,4242.8,0.02]
[1755824850292,39.56641322,4242.9,4242.8,0.02]
[1755824850587,39.98761322,4242.9,4242.8,0.02]
[1755824851378,50.62161322,4242.9,4242.8,0.02]
[1755824851688,50.62161322,4242.9,4241.8,0.02]
[1755824851689,3.66,4242.8,4241.8,0.02]
[1755824851887,0.66,4242.2,4241.8,0.02]
[1755824852199,0.66,4242.0,4241.8,0.02]
[1755824852354,3.971,4241.9,4241.8,0.02]
[1755824852555,1.813,4242.1,4241.8,0.3127]
[1755824852958,3.971,4242.0,4241.9,0.4384]
[1755824853160,1.813,4242.1,4241.9,0.7311]
[1755824853464,1.813,4242.1,4242.0,0.4384]
[1755824853658,5.784,4242.1,4242.0,0.7311]
[1755824855470,5.784,4242.1,4242.0,0.2927]
[1755824855673,0.66,4242.0,4241.8,0.02]
[1755824855862,3.975,4241.9,4241.8,0.02]
[1755824856064,3.975,4241.9,4241.8,0.3127]
[1755824856299,3.975,4241.9,4241.8,0.3167]
[1755824860773,1.813,4242.1,4241.8,0.7679]
[1755824861076,3.974,4242.0,4241.9,0.4512]
[1755824861477,3.974,4242.0,4241.9,0.7563]
[1755824861880,3.974,4242.0,4241.9,0.3051]
[1755824862304,4.1935,4242.0,4241.8,0.024]
[1755824862516,3.975,4241.9,4241.8,0.024]
[1755824863286,49.57057937,4241.9,4241.8,0.024]
[1755824863500,50.02507937,4241.9,4241.8,0.024]
[1755824864214,53.02507937,4241.9,4241.8,0.024]
[1755824866719,52.57057937,4241.9,4241.8,0.024]
[1755824868018,48.37367937,4241.9,4241.8,0.024]
[1755824868216,52.34767937,4241.9,4241.8,0.024]
[1755824868520,52.56717937,4241.9,4241.8,0.024]
[1755824870693,18.37367937,4241.9,4241.8,0.3291]
[1755824870898,22.34767937,4241.9,4241.8,0.3291]
[1755824871101,22.34767937,4241.9,4241.8,0.024]
[1755824871501,6.974,4241.9,4241.8,0.3291]
[1755824871691,3.974,4241.9,4241.8,0.7803]
[1755824873120,3.974,4241.9,4241.8,0.3291]
[1755824873308,3.974,4241.9,4241.8,0.024]